fUST/lending_fUST_20260601
["ID","MTS","AMOUNT","RATE_DAILY","PERIOD"]
[423653196,1780282243000,-500.0,0.00014993,2]
[423653199,1780282243000,-500.0,0.00014993,2]
[423653201,1780282243000,-500.0,0.00014993,2]
[423653205,1780282243000,-500.0,0.00014993,2]
[423653203,1780282243000,-500.0,0.00014993,2]
[423653209,1780282243000,-500.0,0.00014993,2]
[423653207,1780282243000,-500.0,0.00014993,2]
[423653224,1780282243000,-500.0,0.00014993,2]
[423653211,1780282243000,-500.0,0.00014993,2]
[423653218,1780282243000,-500.0,0.00014993,2]
[423653220,1780282243000,-500.0,0.00014993,2]
[423653214,1780282243000,-500.54040491,0.00014993,2]
[423653225,1780282243000,-500.0,0.00014993,2]
[423653255,1780282243000,-1000.0,0.00014996,2]
[423653216,1780282243000,-500.0,0.00014993,2]
[423653229,1780282243000,-500.0,0.00014993,2]
[423653227,1780282243000,-500.0,0.00014993,2]
[423653231,1780282243000,-500.0,0.00014993,2]
[423653233,1780282243000,-501.11207663,0.00014993,2]
[423653235,1780282243000,-501.61940557,0.00014993,2]
[423653237,1780282243000,-500.0,0.00014993,2]
[423653239,1780282243000,-500.0,0.00014993,2]
[423653241,1780282243000,-500.0,0.00014993,2]
[423653242,1780282243000,-500.0,0.00014993,2]
[423653246,1780282243000,-500.0,0.00014993,2]
[423653250,1780282243000,-504.0101343,0.00014995,2]
[423653253,1780282243000,-404.35246417,0.00014996,2]
[423653248,1780282243000,-500.0,0.00014994,2]
[423653244,1780282243000,-380.46811772,0.00014993,2]
[423653222,1780282243000,-500.0,0.00014993,2]
[423653337,1780282243000,-500.0,0.00014996,2]
[423653457,1780282243000,-186.55998132,0.00014996,2]
[423653326,1780282243000,-500.0,0.00014996,2]
[423653397,1780282243000,-500.0,0.00014996,2]
[423653398,1780282243000,-500.0,0.00014996,2]
[423653400,1780282243000,-500.0,0.00014996,2]
[423653402,1780282243000,-500.9608848,0.00014996,2]
[423653408,1780282243000,-500.0,0.00014996,2]
[423653404,1780282243000,-500.0,0.00014996,2]
[423653417,1780282243000,-500.0,0.00014996,2]
[423653410,1780282243000,-500.18709943,0.00014996,2]
[423653412,1780282243000,-500.0,0.00014996,2]
[423653406,1780282243000,-500.0,0.00014996,2]
[423653415,1780282243000,-500.0,0.00014996,2]
[423653419,1780282243000,-509.05422356,0.00014996,2]
[423653424,1780282243000,-500.0,0.00014996,2]
[423653423,1780282243000,-500.0,0.00014996,2]
[423653428,1780282243000,-500.0,0.00014996,2]
[423653426,1780282243000,-501.42666981,0.00014996,2]
[423653430,1780282243000,-500.0,0.00014996,2]
[423653339,1780282243000,-500.0,0.00014996,2]
[423653451,1780282243000,-500.0,0.00014996,2]
[423653453,1780282243000,-500.0,0.00014996,2]
[423653447,1780282243000,-500.82159351,0.00014996,2]
[423653449,1780282243000,-500.0,0.00014996,2]
[423653436,1780282243000,-500.0,0.00014996,2]
[423653399,1780282243000,-500.0,0.00014996,2]
[423653438,1780282243000,-500.0,0.00014996,2]
[423653443,1780282243000,-500.0,0.00014996,2]
[423653442,1780282243000,-502.25491713,0.00014996,2]
[423653434,1780282243000,-500.0,0.00014996,2]
[423653432,1780282243000,-500.0,0.00014996,2]
[423653440,1780282243000,-500.0,0.00014996,2]
[423653420,1780282243000,-500.0,0.00014996,2]
[423653445,1780282243000,-500.0,0.00014996,2]
[423653396,1780282243000,-580.99720278,0.00014996,2]
[423653455,1780282243000,-500.0,0.00014996,2]
[423653387,1780282243000,-500.0,0.00014996,2]
[423653324,1780282243000,-500.0,0.00014996,2]
[423653322,1780282243000,-500.0,0.00014996,2]
[423653341,1780282243000,-500.0,0.00014996,2]
[423653329,1780282243000,-500.0,0.00014996,2]
[423653343,1780282243000,-500.0,0.00014996,2]
[423653345,1780282243000,-500.0,0.00014996,2]
[423653347,1780282243000,-500.0,0.00014996,2]
[423653361,1780282243000,-500.0,0.00014996,2]
[423653392,1780282243000,-500.0,0.00014996,2]
[423653365,1780282243000,-500.0,0.00014996,2]
[423653367,1780282243000,-500.0,0.00014996,2]
[423653349,1780282243000,-500.0,0.00014996,2]
[423653353,1780282243000,-500.0,0.00014996,2]
[423653351,1780282243000,-500.0,0.00014996,2]
[423653359,1780282243000,-500.0,0.00014996,2]
[423653363,1780282243000,-500.0,0.00014996,2]
[423653357,1780282243000,-500.0,0.00014996,2]
[423653369,1780282243000,-500.37083521,0.00014996,2]
[423653395,1780282243000,-500.0,0.00014996,2]
[423653393,1780282243000,-500.0,0.00014996,2]
[423653385,1780282243000,-500.0,0.00014996,2]
[423653383,1780282243000,-500.0,0.00014996,2]
[423653391,1780282243000,-500.0,0.00014996,2]
[423653381,1780282243000,-500.0,0.00014996,2]
[423653394,1780282243000,-500.28642384,0.00014996,2]
[423653389,1780282243000,-500.0,0.00014996,2]
[423653377,1780282243000,-446.36070812,0.00014996,2]
[423653375,1780282243000,-500.0,0.00014996,2]
[423653373,1780282243000,-500.0,0.00014996,2]
[423653371,1780282243000,-500.0,0.00014996,2]
[423653355,1780282243000,-500.0,0.00014996,2]
[423653379,1780282243000,-500.0,0.00014996,2]
[423653553,1780282244000,-500.0,0.00015264,2]
[423653551,1780282244000,-500.0,0.00015263,2]
[423653537,1780282244000,-500.0,0.00015263,2]
[423653547,1780282244000,-500.0,0.00015263,2]
[423653541,1780282244000,-500.0,0.00015263,2]
[423653549,1780282244000,-500.0,0.00015263,2]
[423653545,1780282244000,-500.0,0.00015263,2]
[423653543,1780282244000,-500.0,0.00015263,2]
[423653531,1780282244000,-219.577122,0.00015068,2]
[423653532,1780282244000,-500.0,0.00015263,2]
[423653519,1780282244000,-500.41049806,0.00014997,2]
[423653521,1780282244000,-500.0,0.00014997,2]
[423653539,1780282244000,-500.0,0.00015263,2]
[423653555,1780282244000,-500.0,0.00015264,2]
[423653592,1780282244000,-500.0,0.00015265,2]
[423653557,1780282244000,-500.0,0.00015264,2]
[423653517,1780282244000,-507.64322363,0.00014997,2]
[423653590,1780282244000,-500.0,0.00015265,2]
[423653584,1780282244000,-500.0,0.00015265,2]
[423653581,1780282244000,-500.87432562,0.00015265,2]
[423653578,1780282244000,-500.0,0.00015265,2]
[423653576,1780282244000,-500.0,0.00015265,2]
[423653567,1780282244000,-500.0,0.00015265,2]
[423653571,1780282244000,-500.0,0.00015265,2]
[423653562,1780282244000,-500.0,0.00015265,2]
[423653574,1780282244000,-501.64777203,0.00015265,2]
[423653561,1780282244000,-500.0,0.00015264,2]
[423653572,1780282244000,-504.92,0.00015265,2]
[423653565,1780282244000,-161.88269117,0.00015265,2]
[423653569,1780282244000,-500.0,0.00015265,2]
[423653559,1780282244000,-500.0,0.00015264,2]
[423653529,1780282244000,-500.0,0.00014997,2]
[423653496,1780282244000,-500.87116509,0.00014996,2]
[423653523,1780282244000,-500.0,0.00014997,2]
[423653463,1780282244000,-501.20239223,0.00014996,2]
[423653465,1780282244000,-502.24382453,0.00014996,2]
[423653594,1780282244000,-437.09,0.00015265,2]
[423653461,1780282244000,-500.0,0.00014996,2]
[423653459,1780282244000,-500.0,0.00014996,2]
[423653474,1780282244000,-282.38768873,0.00014996,2]
[423653469,1780282244000,-500.77175486,0.00014996,2]
[423653472,1780282244000,-500.59036592,0.00014996,2]
[423653470,1780282244000,-516.00051102,0.00014996,2]
[423653478,1780282244000,-500.51952016,0.00014996,2]
[423653490,1780282244000,-500.0,0.00014996,2]
[423653476,1780282244000,-504.34939713,0.00014996,2]
[423653480,1780282244000,-502.01613943,0.00014996,2]
[423653486,1780282244000,-500.0,0.00014996,2]
[423653527,1780282244000,-501.32577529,0.00014997,2]
[423653482,1780282244000,-503.40185224,0.00014996,2]
[423653484,1780282244000,-501.17213229,0.00014996,2]
[423653492,1780282244000,-500.0,0.00014996,2]
[423653494,1780282244000,-500.0,0.00014996,2]
[423653498,1780282244000,-503.03729797,0.00014996,2]
[423653500,1780282244000,-500.0,0.00014996,2]
[423653502,1780282244000,-549.38997238,0.00014996,2]
[423653505,1780282244000,-500.0,0.00014996,2]
[423653507,1780282244000,-500.0,0.00014996,2]
[423653504,1780282244000,-500.42870661,0.00014996,2]
[423653515,1780282244000,-500.0,0.00014997,2]
[423653509,1780282244000,-500.0,0.00014996,2]
[423653525,1780282244000,-500.0,0.00014997,2]
[423653513,1780282244000,-500.0,0.00014997,2]
[423653511,1780282244000,-460.42602247,0.00014997,2]
[423653488,1780282244000,-518.49345268,0.00014996,2]
[423653587,1780282244000,-500.0,0.00015265,2]
[423653467,1780282244000,-500.0,0.00014996,2]
[423653603,1780282244000,-419.84811248,0.00015265,2]
[423653666,1780282244000,-500.0,0.00015266,2]
[423653676,1780282244000,-1469.6721,0.00015266,2]
[423653678,1780282244000,-501.68672626,0.00015266,2]
[423653668,1780282244000,-504.31203161,0.00015266,2]
[423653681,1780282244000,-500.0,0.00015266,2]
[423653674,1780282244000,-500.0,0.00015266,2]
[423653669,1780282244000,-508.47540276,0.00015266,2]
[423653672,1780282244000,-500.0,0.00015266,2]
[423653685,1780282244000,-500.0,0.00015266,2]
[423653679,1780282244000,-502.16482555,0.00015266,2]
[423653687,1780282244000,-501.36658258,0.00015266,2]
[423653689,1780282244000,-501.74757924,0.00015266,2]
[423653691,1780282244000,-500.0,0.00015266,2]
[423653695,1780282244000,-500.52460975,0.00015266,2]
[423653662,1780282244000,-500.0,0.00015266,2]
[423653693,1780282244000,-500.0,0.00015266,2]
[423653703,1780282244000,-500.0,0.00015267,2]
[423653707,1780282244000,-501.06622022,0.00015267,2]
[423653699,1780282244000,-500.0,0.00015267,2]
[423653697,1780282244000,-500.0,0.00015267,2]
[423653712,1780282244000,-500.0,0.00015267,2]
[423653701,1780282244000,-500.0,0.00015267,2]
[423653709,1780282244000,-500.0,0.00015267,2]
[423653711,1780282244000,-500.0,0.00015267,2]
[423653716,1780282244000,-388.6324293,0.00015267,2]
[423653714,1780282244000,-500.0,0.00015267,2]
[423653718,1780282244000,-500.0,0.00015267,2]
[423653720,1780282244000,-500.84593698,0.00015267,2]
[423653722,1780282244000,-500.0,0.00015267,2]
[423653597,1780282244000,-500.0,0.00015265,2]
[423653705,1780282244000,-500.0,0.00015267,2]
[423653664,1780282244000,-500.0,0.00015266,2]
[423653683,1780282244000,-502.3530958,0.00015266,2]
[423653647,1780282244000,-500.0,0.00015266,2]
[423653618,1780282244000,-500.0,0.00015265,2]
[423653631,1780282244000,-500.0,0.00015265,2]
[423653620,1780282244000,-500.0,0.00015265,2]
[423653627,1780282244000,-582.51189762,0.00015265,2]
[423653612,1780282244000,-500.0,0.00015265,2]
[423653644,1780282244000,-500.0,0.00015266,2]
[423653629,1780282244000,-501.98155845,0.00015265,2]
[423653623,1780282244000,-500.0,0.00015265,2]
[423653609,1780282244000,-500.0,0.00015265,2]
[423653607,1780282244000,-500.0,0.00015265,2]
[423653601,1780282244000,-500.0,0.00015265,2]
[423653599,1780282244000,-500.0,0.00015265,2]
[423653595,1780282244000,-500.0,0.00015265,2]
[423653605,1780282244000,-500.0,0.00015265,2]
[423653610,1780282244000,-500.0,0.00015265,2]
[423653614,1780282244000,-500.0,0.00015265,2]
[423653625,1780282244000,-500.0,0.00015265,2]
[423653635,1780282244000,-500.0,0.00015265,2]
[423653616,1780282244000,-367.02303112,0.00015265,2]
[423653658,1780282244000,-500.0,0.00015266,2]
[423653642,1780282244000,-503.64657972,0.00015266,2]
[423653660,1780282244000,-500.0,0.00015266,2]
[423653641,1780282244000,-563.44561465,0.00015266,2]
[423653654,1780282244000,-500.0,0.00015266,2]
[423653656,1780282244000,-500.0,0.00015266,2]
[423653649,1780282244000,-499.69539944,0.00015266,2]
[423653650,1780282244000,-500.0,0.00015266,2]
[423653639,1780282244000,-500.0,0.00015265,2]
[423653633,1780282244000,-504.1329493,0.00015265,2]
[423653637,1780282244000,-586.06649443,0.00015265,2]
[423653622,1780282244000,-504.0828619,0.00015265,2]
[423653652,1780282244000,-500.0,0.00015266,2]
[423653761,1780282245000,-321.40999316,0.0001527,2]
[423653747,1780282245000,-503.6944662,0.0001527,2]
[423653760,1780282245000,-500.99601612,0.0001527,2]
[423653754,1780282245000,-501.27531937,0.0001527,2]
[423653749,1780282245000,-502.74737745,0.0001527,2]
[423653758,1780282245000,-504.13423095,0.0001527,2]
[423653744,1780282245000,-501.09108143,0.0001527,2]
[423653729,1780282245000,-509.41431439,0.0001527,2]
[423653751,1780282245000,-500.30177838,0.0001527,2]
[423653742,1780282245000,-502.83903092,0.0001527,2]
[423653745,1780282245000,-505.31419551,0.0001527,2]
[423653740,1780282245000,-496.14046367,0.0001527,2]
[423653724,1780282245000,-500.0,0.00015268,2]
[423653726,1780282245000,-500.0,0.00015269,2]
[423653763,1780282245000,-179.41477093,0.0001527,2]
[423653755,1780282245000,-505.37081083,0.0001527,2]
[423653765,1780282245000,-505.75581507,0.0001527,2]
[423653809,1780282245000,-41.43539436,0.0001527,2]
[423653769,1780282245000,-500.0,0.0001527,2]
[423653767,1780282245000,-501.75701177,0.0001527,2]
[423653828,1780282245000,-504.19662485,0.0001527,2]
[423653826,1780282245000,-508.79237419,0.0001527,2]
[423653830,1780282245000,-376.02984369,0.0001527,2]
[423653818,1780282245000,-634.05740078,0.0001527,2]
[423653814,1780282245000,-570.92585476,0.0001527,2]
[423653816,1780282245000,-609.09032121,0.0001527,2]
[423653804,1780282245000,-244.86944343,0.0001527,2]
[423653824,1780282245000,-503.64274486,0.0001527,2]
[423653811,1780282245000,-507.62110085,0.0001527,2]
[423653806,1780282245000,-459.88188329,0.0001527,2]
[423653779,1780282245000,-256.4180922,0.0001527,2]
[423653777,1780282245000,-231.41690376,0.0001527,2]
[423653775,1780282245000,-510.04487226,0.0001527,2]
[423653773,1780282245000,-422.12013178,0.0001527,2]
[423653812,1780282245000,-501.26238379,0.0001527,2]
[423653771,1780282245000,-80.14274222,0.0001527,2]
[423654045,1780282247000,-394.11676155,0.0001527,2]
[423654050,1780282247000,-500.0,0.0001527,2]
[423654055,1780282247000,-600.59219775,0.0001527,2]
[423654048,1780282247000,-510.074378,0.0001527,2]
[423654041,1780282247000,-500.0,0.0001527,2]
[423654046,1780282247000,-500.55634592,0.0001527,2]
[423654053,1780282247000,-171.09307076,0.0001527,2]
[423654056,1780282247000,-501.68007374,0.0001527,2]
[423654039,1780282247000,-503.50150819,0.0001527,2]
[423654043,1780282247000,-500.0,0.0001527,2]
[423654051,1780282247000,-501.88983645,0.0001527,2]
[423654063,1780282247000,-500.76654817,0.0001527,2]
[423654060,1780282247000,-500.92532563,0.0001527,2]
[423654062,1780282247000,-501.15781293,0.0001527,2]
[423654072,1780282247000,-500.0,0.0001527,2]
[423654073,1780282247000,-501.08006696,0.0001527,2]
[423654075,1780282247000,-501.84319389,0.0001527,2]
[423654076,1780282247000,-501.02728448,0.0001527,2]
[423654033,1780282247000,-240.70339772,0.0001527,2]
[423654065,1780282247000,-308.06279123,0.0001527,2]
[423654067,1780282247000,-504.89781046,0.0001527,2]
[423654070,1780282247000,-243.12386181,0.0001527,2]
[423654078,1780282247000,-503.35981051,0.0001527,2]
[423654058,1780282247000,-413.99560474,0.0001527,2]
[423654025,1780282247000,-500.36694936,0.0001527,2]
[423654015,1780282247000,-501.41582732,0.0001527,2]
[423654028,1780282247000,-503.23213049,0.0001527,2]
[423654068,1780282247000,-359.8239767,0.0001527,2]
[423653981,1780282247000,-128.77390593,0.0001527,2]
[423653984,1780282247000,-502.17557336,0.0001527,2]
[423653993,1780282247000,-500.86526854,0.0001527,2]
[423653982,1780282247000,-501.33788442,0.0001527,2]
[423653989,1780282247000,-505.20948522,0.0001527,2]
[423653994,1780282247000,-248.28263218,0.0001527,2]
[423653991,1780282247000,-648.86587576,0.0001527,2]
[423653996,1780282247000,-293.40506461,0.0001527,2]
[423653998,1780282247000,-500.0,0.0001527,2]
[423653986,1780282247000,-501.27934183,0.0001527,2]
[423653999,1780282247000,-501.06533838,0.0001527,2]
[423653987,1780282247000,-505.957782,0.0001527,2]
[423654001,1780282247000,-491.46433157,0.0001527,2]
[423654005,1780282247000,-500.0,0.0001527,2]
[423654003,1780282247000,-503.91352071,0.0001527,2]
[423654006,1780282247000,-501.04968833,0.0001527,2]
[423654017,1780282247000,-505.36808634,0.0001527,2]
[423654012,1780282247000,-501.32440002,0.0001527,2]
[423654009,1780282247000,-505.45803676,0.0001527,2]
[423654020,1780282247000,-501.62725041,0.0001527,2]
[423654023,1780282247000,-502.21722852,0.0001527,2]
[423654036,1780282247000,-500.94667721,0.0001527,2]
[423654031,1780282247000,-503.3737292,0.0001527,2]
[423654080,1780282247000,-501.74382434,0.0001527,2]
[423654183,1780282247000,-500.0,0.00015539,2]
[423654083,1780282247000,-500.0,0.0001527,2]
[423654157,1780282247000,-502.03124963,0.00015539,2]
[423654158,1780282247000,-500.0,0.00015539,2]
[423654175,1780282247000,-500.0,0.00015539,2]
[423654173,1780282247000,-500.0,0.00015539,2]
[423654172,1780282247000,-318.88644661,0.00015539,2]
[423654160,1780282247000,-503.73829546,0.00015539,2]
[423654082,1780282247000,-501.38827111,0.0001527,2]
[423654177,1780282247000,-500.0,0.00015539,2]
[423654166,1780282247000,-505.35387299,0.00015539,2]
[423654164,1780282247000,-504.24563093,0.00015539,2]
[423654179,1780282247000,-500.0,0.00015539,2]
[423654181,1780282247000,-500.0,0.00015539,2]
[423654170,1780282247000,-500.0,0.00015539,2]
[423654168,1780282247000,-500.0,0.00015539,2]
[423654185,1780282247000,-616.68509262,0.00015539,2]
[423654200,1780282247000,-500.0,0.0001554,2]
[423654187,1780282247000,-502.38923155,0.00015539,2]
[423654190,1780282247000,-512.02541788,0.0001554,2]
[423654189,1780282247000,-505.73267413,0.00015539,2]
[423654198,1780282247000,-501.35425279,0.0001554,2]
[423654192,1780282247000,-461.8741986,0.0001554,2]
[423654194,1780282247000,-608.63139905,0.0001554,2]
[423654196,1780282247000,-502.7141072,0.0001554,2]
[423654155,1780282247000,-501.47828446,0.00015539,2]
[423654151,1780282247000,-500.0,0.00015537,2]
[423654162,1780282247000,-504.48667426,0.00015539,2]
[423654149,1780282247000,-1205.9439596,0.00015362,2]
[423654087,1780282247000,-507.0625673,0.0001527,2]
[423654085,1780282247000,-500.0,0.0001527,2]
[423654089,1780282247000,-163.36522334,0.0001527,2]
[423654122,1780282247000,-500.0,0.0001527,2]
[423654153,1780282247000,-500.0,0.00015537,2]
[423654110,1780282247000,-337.49103445,0.0001527,2]
[423654112,1780282247000,-500.0,0.0001527,2]
[423654127,1780282247000,-516.73767138,0.0001527,2]
[423654125,1780282247000,-500.0,0.0001527,2]
[423654129,1780282247000,-506.48829179,0.0001527,2]
[423654114,1780282247000,-190.07807476,0.0001527,2]
[423654123,1780282247000,-500.0,0.0001527,2]
[423654116,1780282247000,-309.92192524,0.0001527,2]
[423654118,1780282247000,-500.99277254,0.0001527,2]
[423654145,1780282247000,-425.92238347,0.00015271,2]
[423654138,1780282247000,-500.0,0.00015271,2]
[423654143,1780282247000,-500.0,0.00015271,2]
[423654147,1780282247000,-600.0,0.00015289,2]
[423654141,1780282247000,-474.78816463,0.00015271,2]
[423654136,1780282247000,-518.15483527,0.0001527,2]
[423654133,1780282247000,-500.0,0.0001527,2]
[423654131,1780282247000,-500.0,0.0001527,2]
[423654120,1780282247000,-500.0,0.0001527,2]
[423654140,1780282247000,-500.0,0.00015271,2]
[423654218,1780282248000,-503.06696804,0.00015541,2]
[423654211,1780282248000,-507.23963532,0.0001554,2]
[423654214,1780282248000,-500.0,0.0001554,2]
[423654232,1780282248000,-500.0,0.00015541,2]
[423654226,1780282248000,-509.8377802,0.00015541,2]
[423654222,1780282248000,-502.74632503,0.00015541,2]
[423654230,1780282248000,-500.0,0.00015541,2]
[423654203,1780282248000,-490.82824039,0.0001554,2]
[423654212,1780282248000,-500.0,0.0001554,2]
[423654216,1780282248000,-271.96245119,0.00015541,2]
[423654209,1780282248000,-609.53131473,0.0001554,2]
[423654201,1780282248000,-501.67377268,0.0001554,2]
[423654207,1780282248000,-500.0,0.0001554,2]
[423654205,1780282248000,-501.62131761,0.0001554,2]
[423654224,1780282248000,-507.25052933,0.00015541,2]
[423654228,1780282248000,-500.0,0.00015541,2]
[423654220,1780282248000,-283.23751563,0.00015541,2]
[423654271,1780282248000,-9502.05841746,0.000157,2]
[423654245,1780282248000,-507.28608656,0.00015544,2]
[423654263,1780282248000,-502.98945684,0.00015545,2]
[423654265,1780282248000,-500.0,0.00015545,2]
[423654269,1780282248000,-153.80130785,0.00015644,2]
[423654261,1780282248000,-502.00273442,0.00015544,2]
[423654259,1780282248000,-303.83281024,0.00015544,2]
[423654255,1780282248000,-509.78667474,0.00015544,2]
[423654267,1780282248000,-155.03859294,0.00015642,2]
[423654257,1780282248000,-218.98017098,0.00015544,2]
[423654251,1780282248000,-504.71113144,0.00015544,2]
[423654249,1780282248000,-507.34639135,0.00015544,2]
[423654247,1780282248000,-500.0,0.00015544,2]
[423654241,1780282248000,-630.21278434,0.00015544,2]
[423654239,1780282248000,-503.91067368,0.00015544,2]
[423654234,1780282248000,-247.91198466,0.00015541,2]
[423654253,1780282248000,-498.33833979,0.00015544,2]
[423654243,1780282248000,-501.61320533,0.00015544,2]
[423658880,1780282910000,-5000.0,0.0001249,2]
[423658882,1780282927000,-166.77,0.00012616,2]
[423658883,1780282944000,-500.0,0.00012616,2]
[423658887,1780282961000,-500.0,0.00012616,2]
[423658888,1780282977000,-500.0,0.00012616,2]
[423658927,1780283432000,-720.49265734,0.00012365,2]
[423659249,1780283439000,-500.0,0.00015254,2]
[423659251,1780283439000,-500.0,0.00015254,2]
[423659241,1780283439000,-500.0,0.00014992,2]
[423659257,1780283439000,-500.0,0.00015254,2]
[423659259,1780283439000,-500.0,0.00015254,2]
[423659255,1780283439000,-500.0,0.00015254,2]
[423659261,1780283439000,-500.0,0.00015254,2]
[423659265,1780283439000,-465.63925763,0.00015254,2]
[423659267,1780283439000,-500.0,0.00015254,2]
[423659269,1780283439000,-500.0,0.00015254,2]
[423659293,1780283439000,-584.91321772,0.00015254,2]
[423659273,1780283439000,-500.0,0.00015254,2]
[423659275,1780283439000,-500.0,0.00015254,2]
[423659270,1780283439000,-500.0,0.00015254,2]
[423659279,1780283439000,-500.0,0.00015254,2]
[423659281,1780283439000,-500.0,0.00015254,2]
[423659285,1780283439000,-500.0,0.00015254,2]
[423659283,1780283439000,-500.0,0.00015254,2]
[423659287,1780283439000,-500.0,0.00015254,2]
[423659291,1780283439000,-500.0,0.00015254,2]
[423659253,1780283439000,-500.0,0.00015254,2]
[423659295,1780283439000,-500.0,0.00015254,2]
[423659277,1780283439000,-500.0,0.00015254,2]
[423659243,1780283439000,-417.42397041,0.00014992,2]
[423659213,1780283439000,-447.47682624,0.00014509,7]
[423659237,1780283439000,-500.0,0.00014983,2]
[423659199,1780283439000,-165.262009,0.00012741,2]
[423659205,1780283439000,-447.47682624,0.00013819,7]
[423659201,1780283439000,-166.77,0.00012747,2]
[423659203,1780283439000,-1000.0,0.00013699,2]
[423659197,1780283439000,-448.67065159,0.00012616,2]
[423659207,1780283439000,-447.47682624,0.00014095,7]
[423659195,1780283439000,-4279.50734266,0.00012365,2]
[423659209,1780283439000,-270.9,0.00014272,2]
[423659218,1780283439000,-500.0,0.00014979,2]
[423659222,1780283439000,-239.78,0.00014981,2]
[423659224,1780283439000,-500.0,0.00014982,2]
[423659239,1780283439000,-500.0,0.00014992,2]
[423659220,1780283439000,-500.0,0.00014981,2]
[423659214,1780283439000,-447.47682624,0.00014924,7]
[423659211,1780283439000,-1200.0,0.00014508,2]
[423659296,1780283439000,-500.0,0.00015254,2]
[423659216,1780283439000,-500.0,0.00014979,2]
[423659233,1780283439000,-503.15036813,0.00014983,2]
[423659228,1780283439000,-364.05928883,0.00014983,2]
[423659231,1780283439000,-504.99725497,0.00014983,2]
[423659230,1780283439000,-503.56636009,0.00014983,2]
[423659235,1780283439000,-512.27070134,0.00014983,2]
[423659245,1780283439000,-175.661697,0.00015068,2]
[423659247,1780283439000,-500.0,0.00015253,2]
[423659226,1780283439000,-500.0,0.00014983,2]
[423659289,1780283439000,-500.0,0.00015254,2]
[423659263,1780283439000,-500.0,0.00015254,2]
[423659306,1780283439000,-500.0,0.00015254,2]
[423659366,1780283439000,-167.82587444,0.000156,2]
[423659368,1780283439000,-550.54747376,0.00015699,2]
[423659370,1780283439000,-27969.22461141,0.000157,2]
[423659372,1780283439000,-27969.22461141,0.000157,2]
[423659374,1780283439000,-27969.22461141,0.000157,2]
[423659376,1780283439000,-18646.14974094,0.000157,2]
[423659378,1780283439000,-18646.14974094,0.000157,2]
[423659380,1780283439000,-18646.14974094,0.000157,2]
[423659384,1780283439000,-500.0,0.00015803,2]
[423659386,1780283439000,-500.0,0.00015804,2]
[423659393,1780283439000,-500.0,0.00016078,2]
[423659364,1780283439000,-235.49393227,0.00015531,2]
[423659395,1780283439000,-500.0,0.00016079,2]
[423659382,1780283439000,-500.0,0.00015801,2]
[423659389,1780283439000,-500.0,0.00016075,2]
[423659397,1780283439000,-500.0,0.00016349,2]
[423659407,1780283439000,-500.0,0.00016438,2]
[423659409,1780283439000,-611.7971671,0.00016438,2]
[423659411,1780283439000,-546.31951207,0.00016623,2]
[423659405,1780283439000,-300.04465846,0.0001643,2]
[423659401,1780283439000,-500.0,0.00016352,2]
[423659399,1780283439000,-500.0,0.00016351,2]
[423659403,1780283439000,-500.0,0.00016353,2]
[423659303,1780283439000,-500.0,0.00015254,2]
[423659388,1780283439000,-500.0,0.00015805,2]
[423659362,1780283439000,-500.0,0.00015531,2]
[423659391,1780283439000,-500.0,0.00016077,2]
[423659356,1780283439000,-500.0,0.00015527,2]
[423659300,1780283439000,-500.0,0.00015254,2]
[423659358,1780283439000,-500.0,0.00015529,2]